bitfinex/quotes_ETHUSD_20240618
["timestamp","ask_amount","ask_price","bid_price","bid_amount"]
[1718712623596,1.22631226,3416.6,3416.2,2.4899]
[1718712623993,1.22631226,3416.6,3415.2,2.3799]
[1718712624178,1.22631226,3416.4,3415.2,2.3799]
[1718712624700,1.22631226,3416.3,3415.2,2.3799]
[1718712624871,1.22631226,3416.3,3415.3,0.44839]
[1718712625557,1.22631226,3416.3,3415.4,2.352]
[1718712625761,1.53340885,3416.5,3415.4,2.352]
[1718712625762,1.22631226,3416.5,3415.4,2.352]
[1718712626013,1.22631226,3416.5,3415.5,0.280039]
[1718712626197,1.22631226,3416.5,3415.6,2.44024591]
[1718712626410,8.65631226,3416.9,3415.6,2.44024591]
[1718712626563,1.84009062,3417.3,3416.2,2.104]
[1718712626564,1.22631226,3417.3,3416.2,2.104]
[1718712626759,1.22631226,3417.7,3416.6,2.104]
[1718712626963,1.22631226,3417.7,3416.7,2.44021964]
[1718712627163,7.43,3418.0,3416.9,2.3817]
[1718712627393,1.22631226,3418.0,3416.9,2.3817]
[1718712627563,1.22631226,3418.0,3417.0,0.05852003]
[1718712627764,1.53320059,3418.1,3417.0,0.05852003]
[1718712627765,1.22631226,3418.1,3417.1,2.3817]
[1718712628064,1.53320059,3418.2,3417.2,0.30253941]
[1718712628065,1.22631226,3418.2,3417.2,0.30253941]
[1718712628265,8.65631226,3418.3,3417.3,0.05851672]
[1718712628597,8.44895129,3418.3,3417.3,0.05851672]
[1718712628802,9.67526355,3418.3,3417.3,0.05851672]
[1718712629362,1.22631226,3418.2,3417.3,0.05851672]
[1718712629667,9.67526355,3418.3,3417.3,0.05851672]
[1718712629883,8.44895129,3418.3,3417.3,0.05851672]
[1718712630789,1.22631226,3418.4,3417.4,2.4503]
[1718712631213,1.22631226,3418.5,3417.4,2.4503]
[1718712632479,11.65631226,3418.6,3417.4,2.4503]
[1718712632702,1.3187023,3418.5,3417.4,2.4503]
[1718712634187,2.54501456,3418.5,3417.4,2.4503]
[1718712634516,3.0,3418.4,3417.4,2.4503]
[1718712634719,4.22631226,3418.4,3417.4,2.4503]
[1718712635094,1.22631226,3418.4,3417.4,2.4503]
[1718712635425,1.36097253,3418.3,3417.4,2.4503]
[1718712637950,2.58728479,3418.3,3417.4,2.4503]
[1718712638234,1.22631226,3418.2,3417.4,2.4503]
[1718712639388,3.33031226,3418.2,3416.2,2.4931]
[1718712639586,1.22631226,3417.9,3416.3,3.2143564]
[1718712639929,1.22631226,3417.8,3416.3,3.2143564]
[1718712640432,1.22631226,3417.8,3416.5,2.4931]
[1718712640633,0.42263123,3417.7,3416.7,2.3599]
[1718712640930,3.0,3417.9,3416.7,2.3599]
[1718712641135,1.22631226,3418.0,3416.7,2.3599]
[1718712641288,1.22631226,3418.0,3416.8,0.05852378]
[1718712641492,1.22631226,3418.0,3416.7,2.3599]
[1718712641718,2.05359451,3417.9,3416.7,2.3599]
[1718712641889,2.05359451,3417.9,3415.5,0.89893871]
[1718712641890,4.3411,3417.7,3416.2,2.4354]
[1718712642091,1.22631226,3417.4,3416.3,0.24354]
[1718712642335,1.22631226,3417.4,3416.2,2.4354]
[1718712642490,1.22631226,3417.3,3416.2,2.4354]
[1718712642695,0.27570229,3417.2,3416.2,2.4354]
[1718712643552,0.27570229,3417.2,3416.3,0.05853475]
[1718712643832,4.22631226,3417.6,3416.4,2.3559]
[1718712644036,8.65631226,3417.7,3416.6,2.3559]
[1718712645504,1.22631226,3417.7,3416.6,2.3559]
[1718712647318,1.22631226,3417.6,3416.6,2.3559]
[1718712647519,0.63070714,3417.5,3416.6,2.3559]
[1718712648539,1.22631226,3417.4,3416.6,2.3559]
[1718712648862,1.77631226,3417.3,3416.6,2.3559]
[1718712649541,1.22631226,3417.2,3416.6,2.3559]
[1718712649711,0.33070714,3417.1,3416.6,2.3559]
[1718712651043,0.33070714,3417.1,3415.5,2.3682]
[1718712651260,1.5570194,3417.1,3415.5,2.3682]
[1718712652725,1.22631226,3417.0,3415.5,2.3682]
[1718712652957,1.76340403,3417.0,3415.6,0.74722]
[1718712654267,3.88031226,3416.9,3415.5,2.3682]
[1718712654583,1.22631226,3416.7,3415.5,2.3682]
[1718712654928,1.22631226,3416.6,3415.5,2.3682]
[1718712655129,0.91789305,3416.6,3415.5,2.3682]
[1718712656499,0.91789305,3416.6,3415.6,0.05854786]
[1718712658364,9.20631226,3416.9,3415.6,0.05854786]
[1718712659274,7.98,3416.9,3415.6,0.05854786]
[1718712659488,9.20631226,3416.9,3415.6,0.05854786]
[1718712660488,7.98,3416.9,3415.6,0.05854786]
[1718712660686,9.65088703,3416.9,3415.7,0.24267479]
[1718712660846,10.87719929,3416.9,3415.5,2.3682]
[1718712661051,1.22631226,3416.7,3415.5,2.3682]
[1718712661283,1.77631226,3416.6,3415.5,2.3682]
[1718712661452,0.6813815,3416.5,3415.5,2.3682]
[1718712663492,1.90769376,3416.5,3415.5,2.3682]
[1718712663693,0.6813815,3416.5,3415.5,2.3682]
[1718712663995,1.22631226,3416.3,3414.3,3.0]
[1718712664153,0.55,3416.2,3414.4,2.3312]
[1718712664358,1.22631226,3416.1,3414.4,2.3312]
[1718712664664,1.77631226,3416.0,3414.4,2.3312]
[1718712665259,0.55,3416.0,3414.4,2.3312]
[1718712665602,0.63061456,3415.9,3414.5,0.23312]
[1718712665904,0.55,3415.8,3414.6,0.05856432]
[1718712668499,3.0,3416.2,3414.7,2.4513]
[1718712668659,3.0,3416.2,3414.9,2.401]
[1718712668862,4.22631226,3416.5,3415.0,0.05855524]
[1718712669803,3.0,3416.5,3415.0,0.05855524]
[1718712670006,0.55,3416.4,3415.0,0.05855524]
[1718712670213,0.75202809,3416.3,3414.9,2.401]
[1718712670495,0.55,3416.2,3414.9,2.401]
[1718712671254,2.2371,3416.1,3414.9,2.401]
[1718712671521,0.55,3416.0,3414.9,2.401]
[1718712671671,1.05202809,3415.9,3414.9,2.401]
[1718712671872,0.55,3415.8,3414.9,2.401]
[1718712673411,0.55,3415.8,3413.7,2.4007]
[1718712673611,2.104,3415.5,3413.7,2.4007]
[1718712673784,2.104,3415.1,3413.7,2.4007]
[1718712673983,0.55,3415.0,3413.7,2.4007]
[1718712674210,3.55,3415.0,3413.7,2.4007]
[1718712677198,5.7871,3415.0,3413.7,2.4007]
[1718712677737,2.104,3414.7,3413.7,2.4007]
[1718712677949,0.7604,3414.6,3413.7,2.4007]
[1718712678102,3.7604,3414.6,3413.7,2.4007]
[1718712678280,3.7604,3414.6,3412.5,2.104]
[1718712678503,3.7604,3414.6,3412.6,2.4805]
[1718712678986,2.104,3414.3,3412.6,2.4805]
[1718712679190,0.7604,3414.2,3412.6,2.72855]
[1718712679641,3.7604,3414.2,3412.6,2.72855]
[1718712679996,2.104,3413.9,3412.6,2.4805]
[1718712680512,0.55,3413.8,3412.6,2.4805]
[1718712680835,2.104,3413.5,3412.6,2.4805]
[1718712681063,0.55,3413.4,3411.7,2.4098]
[1718712681245,0.98411,3413.4,3411.7,2.9202]
[1718712681418,3.98411,3413.4,3411.7,2.4098]
[1718712682248,2.104,3413.1,3411.7,2.4098]
[1718712682733,0.55,3413.0,3411.7,2.4098]
[1718712682906,0.2654,3412.9,3411.7,2.4098]
[1718712683115,0.55,3412.8,3411.7,2.4098]
[1718712683636,0.55,3412.8,3411.8,0.05861708]
[1718712683796,0.2654,3412.9,3411.8,0.05861708]
[1718712683996,2.104,3413.1,3411.8,0.05861708]
[1718712684201,2.104,3413.2,3411.7,2.4098]
[1718712684429,0.55,3413.1,3411.7,2.4098]
[1718712684629,0.5654,3413.0,3411.7,2.4098]
[1718712684843,3.55,3413.1,3411.7,2.4098]
[1718712684844,0.55,3412.9,3411.7,2.4098]
[1718712685055,3.55,3413.1,3411.7,2.4098]
[1718712695260,2.104,3412.8,3411.7,2.4098]
[1718712695545,0.7604,3412.7,3411.7,2.4098]
[1718712696267,3.7604,3412.7,3411.7,2.4098]
[1718712696409,3.2104,3412.7,3411.7,2.4098]
[1718712696610,0.2104,3412.7,3411.7,2.4098]
[1718712697132,3.0,3412.9,3411.8,0.05861733]
[1718712697333,3.0,3412.9,3411.9,2.2878]
[1718712697545,3.0,3412.9,3412.0,0.0586092]
[1718712697746,3.0,3412.9,3412.0,0.29325012]
[1718712697953,3.0,3412.9,3412.0,0.0586092]
[1718712699733,7.43,3413.0,3412.1,2.3033]
[1718712699960,3.0,3414.0,3412.4,2.4606]
[1718712700176,3.0,3414.1,3412.6,2.4606]
[1718712700332,3.0,3414.1,3412.7,2.16258674]
[1718712700682,3.0,3414.1,3412.9,2.4606]
[1718712701179,7.43,3414.2,3412.9,2.4606]
[1718712701744,0.55,3414.1,3412.9,2.4606]
[1718712702470,3.55,3414.1,3412.9,2.4606]
[1718712707582,3.0,3414.1,3413.0,0.05859547]
[1718712707771,3.0,3414.1,3413.1,0.25191955]
[1718712708079,3.0,3414.1,3413.2,0.05858962]
[1718712708588,3.0,3414.1,3413.3,2.434]
[1718712709649,2.95,3414.1,3413.3,2.434]
[1718712709850,7.43,3414.2,3413.4,0.30198963]
[1718712710048,7.43,3414.2,3413.5,2.434]
[1718712710254,7.43,3414.2,3413.7,2.434]
[1718712711165,7.43,3414.6,3413.7,2.434]
[1718712714091,7.43,3415.1,3413.8,2.5042808]
[1718712714290,7.9369593,3415.5,3413.8,2.5042808]
[1718712714491,2.45080593,3415.4,3414.0,2.4457]
[1718712715697,5.45080593,3415.4,3414.0,2.4457]
[1718712715892,0.55,3415.3,3414.0,2.4457]
[1718712716194,3.55,3415.3,3414.0,2.4457]
[1718712716403,1.64308059,3415.2,3414.0,2.71531281]
[1718712719719,0.55,3415.1,3414.0,2.4457]
[1718712720082,3.55,3415.1,3414.0,2.4457]
[1718712721199,3.0,3415.1,3414.0,2.4457]
[1718712721560,1.64308059,3415.2,3414.0,2.4457]
[1718712721911,3.0,3415.4,3414.1,0.05857485]
[1718712722207,7.43,3415.5,3414.2,2.2632]
[1718712722409,7.43,3415.5,3414.4,2.2632]
[1718712722710,7.43,3415.5,3414.5,0.05856646]
[1718712722888,10.43,3415.8,3414.5,0.05856646]
[1718712723060,10.43,3415.8,3414.6,2.2632]
[1718712723261,1.043,3415.7,3414.6,2.2632]
[1718712724206,0.55,3415.6,3414.6,2.2632]
[1718712725902,2.2371,3415.5,3414.2,2.4448]
[1718712726097,1.51121,3415.4,3414.2,2.4448]
[1718712726263,0.55,3415.3,3414.2,2.4448]
[1718712726903,2.104,3414.8,3413.3,2.3082]
[1718712727287,0.55,3414.7,3413.3,2.3082]
[1718712727602,2.104,3414.4,3413.3,2.3082]
[1718712728098,0.55,3414.3,3413.3,2.3082]
[1718712728260,3.55,3414.3,3413.3,2.3082]
[1718712728462,0.8654,3414.2,3413.3,2.3082]
[1718712728900,0.55,3414.1,3413.3,2.3082]
[1718712729793,0.55,3414.1,3412.2,2.4711]
[1718712730174,0.55,3414.1,3412.3,2.54779534]
[1718712730497,0.55,3414.1,3412.4,2.95437953]
[1718712731087,2.104,3414.0,3412.4,2.95437953]
[1718712731315,0.55,3413.9,3412.5,0.05860338]
[1718712731787,0.55,3414.1,3412.5,0.05860338]
[1718712731986,2.06328791,3414.1,3412.6,0.30129829]
[1718712732195,3.55,3414.1,3412.7,0.05859832]
[1718712732502,3.0,3414.1,3412.8,2.39148996]
[1718712732810,3.0,3414.1,3413.0,2.3329]
[1718712732969,3.0,3414.3,3413.0,2.3329]
[1718712733405,3.0,3414.3,3413.1,0.05858725]
[1718712734204,3.0,3414.3,3413.0,2.3329]
[1718712734402,1.593,3414.2,3413.0,2.3329]
[1718712736811,2.104,3414.1,3413.0,2.3329]
[1718712736969,0.55,3414.0,3413.0,2.3329]
[1718712737166,3.55,3414.0,3413.0,2.3329]
[1718712737566,4.77631226,3414.0,3413.0,2.3329]
[1718712737772,1.30463473,3413.9,3413.0,2.3329]
[1718712737993,0.55,3413.8,3413.0,2.3329]
[1718712738754,5.193,3413.7,3412.2,2.4811]
[1718712739022,0.55,3413.6,3412.3,0.24811]
[1718712739174,4.77631226,3413.6,3412.3,0.24811]
[1718712739371,1.77631226,3413.6,3412.3,0.24811]
[1718712739702,0.95240263,3413.5,3412.3,0.24811]
[1718712739882,0.55,3413.4,3412.3,0.24811]
[1718712740084,0.55,3413.4,3412.3,0.30671564]
[1718712740480,3.0,3413.6,3412.3,0.24811]
[1718712740718,3.0,3413.6,3412.2,2.4811]
[1718712740719,0.55,3413.5,3412.4,0.27878156]
[1718712742176,1.77631226,3413.5,3412.4,0.27878156]
[1718712742488,0.81479482,3413.4,3412.2,2.4811]
[1718712742694,3.81479482,3413.4,3412.2,2.4811]
[1718712743080,5.04110708,3413.4,3412.2,2.4811]
[1718712744223,1.22631226,3413.2,3412.2,2.4811]
[1718712744513,1.22631226,3413.0,3412.2,2.4811]
[1718712744720,3.33031226,3413.0,3412.2,2.4811]
[1718712744879,1.22631226,3412.8,3411.7,2.3601]
[1718712745081,1.05395838,3412.7,3411.7,2.3601]
[1718712745311,0.55,3412.6,3411.7,2.3601]
[1718712745593,3.55,3412.6,3411.7,2.3601]
[1718712745999,3.0,3412.6,3411.7,2.3601]
[1718712746202,1.05395838,3412.7,3411.7,2.3601]
[1718712746405,4.22631226,3412.9,3411.8,0.05861703]
[1718712746685,3.0,3412.8,3411.8,0.05861703]
[1718712747018,4.22631226,3413.0,3411.7,2.3601]
[1718712747318,5.148669,3413.1,3411.7,2.59611]
[1718712747512,0.55,3413.0,3411.7,2.59611]
[1718712747813,1.77631226,3413.0,3411.7,2.3601]
[1718712748017,1.22631226,3412.9,3411.7,2.3601]
[1718712748219,0.55,3412.8,3411.7,2.3601]
[1718712748849,3.65098318,3412.9,3411.7,2.3601]
[1718712749120,0.55,3412.8,3411.7,2.3601]
[1718712749321,0.65098318,3412.9,3411.8,0.05861891]
[1718712749322,3.65098318,3412.9,3411.8,0.05861891]
[1718712749480,3.0,3413.0,3411.8,0.05861891]
[1718712749677,0.55,3412.9,3411.7,2.3601]
[1718712749882,0.5698669,3412.9,3411.7,2.59611]
[1718712750525,0.55,3412.8,3411.7,2.3601]
[1718712751021,2.104,3412.7,3411.7,2.3601]
[1718712751225,5.193,3412.7,3410.4,2.4511]
[1718712751386,5.193,3412.7,3410.6,2.4511]
[1718712751387,1.22631226,3412.5,3410.6,2.4511]
[1718712751592,2.104,3412.3,3410.7,2.4511]
[1718712751787,0.55,3412.2,3410.9,2.4209]
[1718712752015,2.104,3412.3,3411.0,0.05862911]
[1718712752333,3.93881088,3412.4,3410.6,2.4209]
[1718712752334,3.0,3412.2,3410.6,2.4209]
[1718712752483,3.0,3412.4,3410.5,2.104]
[1718712752484,1.12467511,3412.3,3410.7,2.47952223]
[1718712752687,3.0,3412.6,3410.7,2.4209]
[1718712752913,1.23376966,3412.5,3410.9,2.4209]
[1718712753122,0.55,3412.5,3411.0,2.47952222]
[1718712753324,0.47763123,3412.4,3411.2,2.4209]
[1718712754189,0.47763123,3412.4,3411.3,0.05862224]
[1718712754602,0.47763123,3412.4,3411.2,2.4209]
[1718712755486,0.55,3412.3,3411.2,2.4209]
[1718712757299,2.104,3412.2,3411.2,2.4209]
[1718712757508,0.86316312,3412.1,3411.2,2.4209]
[1718712758222,2.2371,3412.0,3410.7,2.4209]
[1718712758409,0.55,3411.9,3410.7,2.4209]
[1718712758612,0.4920581,3411.8,3410.7,2.4209]
[1718712758809,0.55,3411.7,3410.7,2.4209]
[1718712760395,0.55,3411.8,3410.7,2.4209]
[1718712761220,3.089,3411.7,3410.7,2.4209]
[1718712761446,4.47504908,3411.6,3410.7,2.4209]
[1718712761839,4.98253986,3411.6,3409.4,2.2748]
[1718712762351,4.98253986,3411.6,3409.6,2.4716]
[1718712762675,4.98253986,3411.6,3409.0,3.0]
[1718712762676,4.47504908,3411.6,3409.8,2.4716]
[1718712762813,4.47504908,3411.6,3409.7,2.16264502]
[1718712762814,3.55,3411.6,3410.0,2.4716]
[1718712763175,3.0,3411.5,3410.2,2.4716]
[1718712763312,3.0,3411.5,3410.4,2.4716]
[1718712763508,0.55,3411.6,3410.4,2.4716]
[1718712763747,0.55,3411.6,3409.4,3.089]
[1718712763748,3.0,3411.9,3410.6,2.394]
[1718712763944,3.0,3411.9,3410.1,2.104]
[1718712763945,3.0,3411.9,3410.8,2.394]
[1718712764111,7.43,3412.0,3410.9,0.05863052]
[1718712764446,7.43,3412.3,3411.1,2.394]
[1718712765455,3.55,3412.2,3411.1,2.394]
[1718712765613,4.0573951,3412.2,3411.1,2.394]
[1718712765957,2.41950263,3412.1,3411.1,2.394]
[1718712766161,0.55,3412.0,3411.1,2.394]
[1718712766477,3.55,3412.0,3409.5,2.383]
[1718712766658,3.55,3412.0,3409.7,2.383]
[1718712766659,0.70268977,3411.9,3409.7,2.383]
[1718712766948,0.55,3411.8,3409.7,2.383]
[1718712767456,2.104,3411.7,3409.7,2.383]
[1718712767771,0.55,3411.6,3409.7,2.383]
[1718712767917,0.9293,3411.5,3409.9,2.2732]
[1718712768119,0.55,3411.4,3409.9,2.2732]
[1718712769074,0.55,3411.4,3410.1,2.445]
[1718712769274,0.55,3411.4,3410.2,0.30900379]
[1718712769472,0.55,3411.5,3410.3,0.05863925]
[1718712770148,0.55,3411.5,3410.2,0.25036454]
[1718712770348,1.14875111,3411.4,3410.1,2.445]
[1718712770547,0.55,3411.3,3410.1,2.445]
[1718712771760,5.193,3411.2,3410.1,2.445]
[1718712771973,5.193,3411.2,3408.9,2.4051]
[1718712771974,0.55,3411.1,3408.9,2.4051]
[1718712772276,4.53917511,3411.1,3409.0,2.4051]
[1718712772477,4.53917511,3411.1,3409.0,2.46375421]
[1718712772673,4.53917511,3411.1,3408.7,2.104]
[1718712772674,1.02397307,3411.0,3409.2,2.4051]
[1718712772975,0.55,3410.9,3409.2,2.4051]
[1718712773159,0.55,3410.9,3409.4,2.3321]
[1718712773366,0.55,3410.9,3409.6,2.3321]
[1718712776040,3.5075556,3411.1,3409.7,0.05865335]
[1718712776240,3.5075556,3411.1,3409.9,2.2698]
[1718712776477,3.5075556,3411.1,3410.0,0.23284448]
[1718712776681,3.5075556,3411.1,3409.9,2.2698]
[1718712777457,0.55,3411.0,3409.9,2.2698]
[1718712781362,0.55,3411.0,3408.8,2.104]
[1718712781363,2.2371,3410.9,3408.8,2.104]
[1718712781566,0.55,3410.8,3408.9,2.3221]
[1718712781796,1.12447096,3410.8,3409.1,2.3221]
[1718712781959,4.12447096,3410.8,3409.1,2.3221]
[1718712782156,5.193,3410.7,3409.1,2.3221]
[1718712782608,3.55,3410.6,3409.1,2.3221]
[1718712782901,0.72860806,3410.5,3409.1,2.3221]
[1718712783060,0.55,3410.4,3409.1,2.3221]
[1718712783671,3.639,3410.4,3409.1,2.3221]
[1718712783880,5.2371,3410.3,3409.1,2.3221]
[1718712784072,0.55,3410.2,3409.1,2.3221]
[1718712784289,0.94261,3410.1,3409.1,2.3221]
[1718712784500,0.55,3410.0,3409.1,2.3221]
[1718712784876,3.0,3410.3,3409.2,0.05865956]
[1718712785081,3.5077376,3410.4,3409.3,0.29673334]
[1718712785278,3.0,3410.4,3409.4,2.3163]
[1718712786401,3.50764762,3410.4,3409.4,2.3163]
[1718712786806,3.5076536,3410.4,3409.4,2.3163]
[1718712787985,0.55,3410.3,3408.6,2.3211]
[1718712788186,1.64376536,3410.3,3408.6,2.5315]
[1718712789227,1.64376536,3410.3,3408.6,2.2911]
[1718712789425,5.24041896,3410.3,3408.6,2.2911]
[1718712789600,2.104,3410.0,3408.6,2.2911]
[1718712790122,0.55,3409.9,3408.6,2.2911]
[1718712790284,2.2671,3409.8,3407.7,3.0]
[1718712790488,2.2671,3409.8,3407.5,3.2794]
[1718712790489,0.55,3409.7,3407.8,0.41754]
[1718712790687,3.55,3409.7,3407.9,0.05867678]
[1718712790924,1.0029919,3409.6,3407.9,0.05867678]
[1718712791126,0.55,3409.5,3407.9,0.05867678]
[1718712791919,0.55,3409.5,3407.9,2.16267678]
[1718712792091,1.0029919,3409.6,3408.0,2.4956]
[1718712792287,3.0,3409.7,3408.4,2.4956]
[1718712792592,7.43,3410.1,3408.3,2.104]
[1718712792593,3.0,3409.9,3408.8,2.4956]
[1718712792814,7.43,3410.1,3409.1,2.104]
[1718712792991,7.43,3410.5,3409.6,2.4956]
[1718712793297,7.43,3410.5,3409.7,0.45996]
[1718712793523,7.43,3410.5,3409.6,2.4956]
[1718712793886,7.43,3410.5,3409.7,0.05864684]
[1718712794169,7.43,3410.5,3409.8,0.05864684]
[1718712794315,7.43,3410.8,3409.6,2.4956]
[1718712794496,7.43,3410.8,3409.6,2.74516]
[1718712795218,3.0,3410.7,3409.6,2.74516]
[1718712795841,3.0,3410.7,3409.7,0.05864687]
[1718712796006,3.0,3410.7,3409.8,0.05864687]
[1718712797133,3.0,3410.7,3409.8,0.33902756]
[1718712798241,7.43,3411.1,3409.9,2.3293]
[1718712798418,7.43,3411.1,3409.8,3.15102756]
[1718712798419,7.43,3411.1,3410.1,2.4439]
[1718712798596,7.43,3411.1,3410.2,2.75278757]
[1718712798797,7.43,3411.1,3410.3,0.05863417]
[1718712799120,7.43,3411.1,3410.2,2.4439]
[1718712799730,3.0,3411.4,3410.2,2.4439]
[1718712799731,10.43,3411.4,3410.2,2.4439]
[1718712799961,3.0,3411.4,3410.2,2.4439]
[1718712800134,3.50750366,3411.6,3410.3,0.05864084]
[1718712801037,3.50750366,3411.6,3410.2,2.4439]
[1718712801247,1.21638159,3411.5,3410.2,2.68829]
[1718712802329,2.44269385,3411.5,3410.2,2.68829]
[1718712803301,1.22631226,3411.4,3410.2,2.68829]
[1718712803518,1.22631226,3411.4,3410.2,2.4439]
[1718712803857,1.22631226,3411.2,3410.2,2.4439]
[1718712803996,0.55,3411.1,3410.2,2.4439]
[1718712804552,1.22631226,3410.9,3410.2,2.4439]
[1718712804746,0.33038045,3410.8,3410.2,2.4439]
[1718712807252,3.0,3411.0,3410.3,0.05864302]
[1718712807417,4.22631226,3411.3,3410.2,2.4439]
[1718712807598,3.0,3411.3,3410.4,0.05863563]
[1718712807798,2.40419385,3411.5,3410.4,0.30888919]
[1718712808846,1.21638159,3411.5,3410.4,0.25025356]
[1718712809135,1.21638159,3411.5,3410.2,2.4439]
[1718712809339,2.07999351,3411.4,3410.2,2.4439]
[1718712809550,5.07999351,3411.4,3410.2,2.4439]
[1718712810343,1.52999351,3411.3,3410.2,2.4439]
[1718712810540,1.33263686,3411.2,3410.2,2.4439]
[1718712810844,4.33263686,3411.2,3410.2,2.4439]
[1718712811201,0.78263686,3411.2,3410.2,2.4439]
[1718712811836,1.52999351,3411.1,3410.2,2.4439]
[1718712812404,1.52999351,3410.8,3408.8,2.4276]
[1718712812656,1.52999351,3410.4,3408.8,2.4276]
[1718712812817,1.52999351,3410.2,3408.8,2.787866]
[1718712813023,1.52999351,3410.1,3408.8,2.4276]
[1718712813205,1.52999351,3410.2,3408.8,2.4276]
[1718712813559,1.52999351,3410.0,3408.8,2.4276]
[1718712814152,1.52999351,3410.1,3408.9,0.05865869]
[1718712814352,1.52999351,3410.2,3408.9,0.05865869]
[1718712814508,1.38165121,3410.2,3409.0,0.24862587]
[1718712814709,2.91164472,3410.2,3409.1,0.05865871]
[1718712815020,1.12333966,3410.1,3409.1,0.05865871]
[1718712815346,3.0,3410.3,3409.2,2.3621]
[1718712815528,4.22377664,3410.3,3409.2,2.3621]
[1718712815851,3.0,3410.3,3409.2,2.3621]
[1718712816055,3.0,3410.3,3409.3,0.23621]
[1718712816056,4.22377664,3410.3,3409.3,0.23621]
[1718712816519,3.0,3410.3,3409.3,0.23621]
[1718712816750,4.22377664,3410.3,3409.2,2.3621]
[1718712816950,1.22377664,3409.9,3408.1,2.3857]
[1718712817273,2.68232611,3410.2,3408.3,2.4217]
[1718712817274,1.22377664,3409.8,3408.3,2.4217]
[1718712817434,1.22377664,3409.8,3408.5,2.4217]
[1718712817634,1.22377664,3409.8,3408.6,0.05866484]
[1718712817885,1.22377664,3409.8,3408.7,0.24803648]
[1718712818231,4.52966652,3410.0,3408.5,2.4217]
[1718712818232,1.22377664,3409.5,3408.5,2.4217]
[1718712818430,4.83559983,3410.0,3408.5,2.4217]
[1718712818431,1.22377664,3409.4,3408.5,2.4217]
[1718712818736,0.27534432,3409.3,3408.5,2.4217]
[1718712818953,1.22377664,3409.4,3408.5,2.4217]
[1718712820134,3.49087664,3409.4,3407.5,2.2746]
[1718712820337,5.57583096,3409.3,3407.7,2.2746]
[1718712820580,1.22377664,3409.2,3407.7,2.2746]
[1718712820863,4.35205432,3409.3,3407.7,2.2746]
[1718712821064,0.58817208,3409.2,3407.8,0.22746]
[1718712822275,0.55,3409.1,3407.8,0.22746]
[1718712822853,0.55,3409.1,3407.7,2.2746]
[1718712824466,2.2671,3409.0,3407.7,2.2746]
[1718712824652,0.55,3408.9,3407.7,2.2746]
[1718712825279,3.55,3408.9,3406.8,2.399]
[1718712825481,3.55,3408.9,3407.0,2.399]
[1718712825482,1.52751555,3408.7,3407.0,2.399]
[1718712825788,0.55,3408.6,3407.1,0.05869345]
[1718712825954,0.55,3408.6,3407.0,2.399]
[1718712826292,0.58119771,3408.5,3407.0,2.6389]
[1718712826498,0.58119771,3408.5,3407.0,2.399]
[1718712826499,2.2671,3408.3,3407.0,2.399]
[1718712826949,0.55,3408.2,3407.0,2.399]
[1718712827147,0.28171,3408.1,3407.0,2.399]
[1718712827383,0.55,3408.0,3407.0,2.399]
[1718712829346,3.0,3408.4,3407.0,2.399]
[1718712829542,0.55,3408.3,3407.0,2.399]
[1718712830745,0.55,3408.4,3407.0,2.399]
[1718712830947,1.44372977,3408.4,3407.0,2.399]
[1718712831183,1.44372977,3408.4,3407.1,0.05869634]
[1718712833582,1.44372977,3408.4,3407.0,2.399]
[1718712837114,4.53272977,3408.4,3407.0,2.399]
[1718712837323,3.8040797,3408.3,3407.0,2.399]
[1718712837467,0.55,3408.2,3407.0,2.399]
[1718712841076,3.639,3408.2,3407.0,2.399]
[1718712841272,3.0,3408.1,3407.0,2.399]
[1718712841479,0.55,3408.0,3407.0,2.399]
[1718712841674,0.71470672,3407.9,3407.0,2.399]
[1718712841988,0.55,3407.8,3407.0,2.399]
[1718712842318,10.43,3408.1,3407.2,2.3626]
[1718712842489,10.43,3408.1,3406.9,2.112]
[1718712842490,7.43,3408.1,3407.4,2.3626]
[1718712842915,8.473,3408.1,3406.7,2.3626]
[1718712844025,0.55,3408.0,3406.7,2.3626]
[1718712844320,3.55,3408.0,3406.7,2.3626]
[1718712844479,1.2023,3407.9,3406.7,2.3626]
[1718712844681,0.55,3407.8,3406.7,2.3626]
[1718712845290,2.2671,3407.7,3406.2,2.4298]
[1718712845492,2.112,3407.4,3406.2,2.4298]
[1718712845883,0.55,3407.3,3406.2,2.4298]
[1718712846083,3.55,3407.3,3406.2,2.4298]
[1718712846415,0.55,3407.3,3406.2,2.4298]
[1718712846576,3.0,3407.5,3406.2,2.4298]
[1718712846577,0.355,3407.2,3406.2,2.4298]
[1718712846781,0.55,3407.1,3406.2,2.4298]
[1718712846989,0.55,3407.4,3406.2,2.4298]
[1718712847199,6.59707773,3407.6,3405.4,2.2508]
[1718712847200,0.55,3407.5,3405.4,2.2508]
[1718712847380,2.112,3407.4,3405.4,2.30952154]
[1718712847578,0.55,3407.3,3405.6,2.112]
[1718712847820,0.55,3407.3,3405.8,2.3697]
[1718712848034,0.55,3407.4,3405.8,2.3697]
[1718712848208,3.50807773,3407.6,3406.0,2.4487]
[1718712848409,3.50807773,3407.6,3405.7,0.2112]
[1718712848410,3.50807773,3407.6,3406.2,2.4487]
[1718712848619,3.50807773,3407.6,3406.3,0.05870337]
[1718712848831,3.50810502,3407.6,3406.2,2.4487]
[1718712849198,3.36210502,3407.6,3406.2,2.4487]
[1718712849434,3.36210502,3407.6,3406.3,2.3297034]